[Event "FIDE Women Candidates 2026"]
[White "Assaubayeva,Bibisara"]
[Black "Tan,Zhongyi"]
[Site "Agios Georgios Pegeia"]
[Round "4.2"]
[Annotator "TA"]
[Result "1/2-1/2"]
[Date "2026.04.01"]
[WhiteElo "2516"]
[BlackElo "2535"]
[PlyCount "91"]
[TimeControl "60"]

{[%evp 17,91,40,29,39,50,42,50,50,61,61,64,64,74,75,68,61,87,75,74,77,71,64,72,54,86,97,75,15,15,18,23,23,23,23,23,23,18,18,17,17,17,17,27,11,12,21,23,23,26,23,25,19,25,0,28,0,31,19,20,7,7,7,7,7,7,0,0,0,0,0,0,0,0,0,0,0]} 1. d4 {[%emt 0:0:4]} d5 {[%emt 0:0:5]} 2. c4 {[%emt 0:0:6]} e6 {[%emt 0:0:4]} 3. Nf3 {[%emt 0:0:6]} c5 {[%emt 0:0:4]} 4. cxd5 {[%emt 0:1:40]} exd5 {[%emt 0:0:5]} 5. g3 {[%emt 0:1:40]} Nf6 {[%emt 0:0:6]} 6. Bg2 {[%emt 0:0:13]} Be7 {[%emt 0:0:5]} 7. O-O {[%emt 0:0:13]} O-O {[%emt 0:0:5]} 8. Nc3 {[%emt 0:3:26]} Nc6 {[%emt 0:0:16]} 9. Bg5 {[%emt 0:2:17]} c4 $1 {[%emt 0:0:7][%mdl 4] is currently scoring better than 9...cxd4.} 10. Rc1 {[%emt 0:5:56] D34: Tarrasch Defence: 6 g3 Nf6 7 Bg2 Be7.} h6 {[%emt 0:8:17]} 11. Bxf6 {[%emt 0:3:54]} Bxf6 {[%emt 0:0:5]} 12. b3 {[%emt 0:5:3] White is slightly better.} cxb3 {[%emt 0:0:34]} 13. Qxb3 {[%emt 0:1:51] White sacrificed a pawn} Bxd4 {[%emt 0:8:18]} 14. Nxd4 $146 {[%emt 0:4:29]} ({But not} 14. Qxd5 $6 Bxc3 15. Qxd8 Rxd8 $15 )(14. Nxd5 Be6 15. e4 (15. Qxb7 Bxd5 16. Nxd4 Nxd4 $17 )Bb6 $11 )({Predecessor:} 14. Nxd5 Be6 15. e4 Bb6 16. Rfd1 Rc8 17. Qa3 Bxd5 18. Rxd5 Qe7 19. Qxe7 Nxe7 20. Rdd1 {1-0 Kuznetsov,M (2246)-Mohammed,Z (2210) Titled Tuesday intern op 29th Aug Early blitz 2023 (3)} )Nxd4 {[%emt 0:0:7]} 15. Qa4 {[%emt 0:0:15]} Nc6 {[%emt 0:10:15][%cal Bd4c6,Bc6e5,Be5d3,Bd3e1][%mdl 32]} 16. Nxd5 {[%emt 0:0:54]} Be6 {[%emt 0:0:26]} 17. Rfd1 {[%emt 0:0:22]} Rc8 {[%emt 0:2:4]} 18. e3 {[%emt 0:5:3]} Qe8 {[%emt 0:3:38]} 19. Qb5 {[%emt 0:21:27] White has more active pieces.} Bg4 {[%emt 0:3:6][%csl Od5] Strong Square White (d5)} 20. Re1 {[%emt 0:5:59]} Ne5 {[%emt 0:6:24]} 21. Qxb7 {[%emt 0:13:0] Ne7+ is the strong threat.} Rb8 {[%emt 0:0:30]} 22. Qxa7 {[%emt 0:1:38]} (22. Qa6 $16 )Nd3 $11 {[%emt 0:14:28][%csl LRc1,LRe1] [#]} 23. Qd4 $1 {[%emt 0:1:13][%csl LRd3,LRg4] Inhibits Qe5.} Bf5 {[%emt 0:0:12]} 24. Rb1 {[%emt 0:2:7]} Nxe1 {[%emt 0:2:27]} 25. Rxb8 {[%emt 0:0:23]} Qxb8 {[%emt 0:0:8]} 26. Ne7+ {[%emt 0:0:4]} Kh8 {[%emt 0:0:18]} 27. Nxf5 {[%emt 0:0:4][%csl Gf5][%cal Rd4g7] [#]} Nf3+ {[%emt 0:1:35]} 28. Bxf3 {[%emt 0:0:5][%csl Gf5][%cal Rd4g7]} Qb1+ {[%emt 0:0:3]} 29. Kg2 {[%emt 0:0:6][%csl Gf5][%cal Rd4g7]} Qxf5 {[%emt 0:0:6][%mdl 4096] Endgame KQR-KQB} 30. a4 {[%emt 0:0:12]} Qa5 {[%emt 0:2:16] Prevents Qa7.} 31. Qd7 {[%emt 0:3:8]} f5 {[%emt 0:1:26] Prevents Be4} 32. h4 {[%emt 0:4:28]} Rd8 {[%emt 0:3:16]} 33. Qe7 {[%emt 0:1:35]} Rc8 {[%emt 0:1:36]} 34. Qe6 {[%emt 0:0:58]} Rf8 {[%emt 0:0:23]} 35. Qd7 {[%emt 0:1:8]} Rd8 {[%emt 0:0:5]} 36. Qe7 {[%emt 0:1:11]} Rc8 {[%emt 0:0:8]} 37. Qf7 {[%emt 0:1:16]} Rd8 {[%emt 0:3:55] The position is equal.} 38. h5 {[%emt 0:3:39]} Qxa4 {[%emt 0:0:33]} 39. Qxf5 {[%emt 0:0:11]} Qd7 {[%emt 0:0:3]} 40. Qg6 {[%emt 0:2:1]} Qd6 {[%emt 0:0:17]} 41. Be4 {[%emt 0:10:23]} Qxg6 {[%emt 0:0:18]} 42. Bxg6 {[%emt 0:0:9]} Kg8 {[%emt 0:0:4]} 43. f4 {[%emt 0:0:7]} Kf8 {[%emt 0:0:8]} 44. Kf3 {[%emt 0:0:7]} Ke7 {[%emt 0:0:5]} 45. g4 {[%emt 0:0:47]} Kf6 {[%emt 0:1:15]} 46. Be4 {[%emt 0:0:9] Weighted Error Value: White=0.07 (flawless) /Black=0.03 (flawless)   Mistake:       	White=1     	---        Inaccurate:     	---       	Black=2      OK:         	White=8     	Black=9      Best:        	---       	Black=1} 1/2-1/2

[Event "FIDE Women Candidates 2026"]
[White "Vaishali,Rameshbabu"]
[Black "Goryachkina,Aleksandra"]
[Site "Agios Georgios Pegeia"]
[Round "4.3"]
[Annotator "TA"]
[Result "1/2-1/2"]
[Date "2026.04.01"]
[WhiteElo "2470"]
[BlackElo "2534"]
[PlyCount "54"]
[TimeControl "60"]

{[%evp 9,54,13,18,5,2,0,17,19,19,22,20,8,10,0,0,-29,-25,-36,-7,-62,-31,-45,-49,-47,-40,-93,-92,-59,0,0,0,0,0,0,0,0,0,0,0,0,24,0,0,0,24,0,0]} 1. e4 {[%emt 0:0:30]} e5 {[%emt 0:0:7]} 2. Nf3 {[%emt 0:0:5]} Nc6 {[%emt 0:0:5]} 3. Bc4 {[%emt 0:0:6]} Nf6 {[%emt 0:0:11]} 4. d3 {[%emt 0:0:6]} h6 {[%emt 0:0:20]} 5. a4 {[%emt 0:0:29][%cal Ba2a4,Ba4a5,Ba5a6][%mdl 32]} Bc5 {[%emt 0:1:20]} 6. Be3 {[%emt 0:0:48] C55: Two Knights: 4 d3, 4 d4 exd4 5 e5 and Max Lange Attack.} Bxe3 {[%emt 0:4:38]} 7. fxe3 {[%emt 0:0:3]} d6 {[%emt 0:1:1]} 8. O-O {[%emt 0:1:29]} Be6 {[%emt 0:5:1]} 9. Bxe6 $146 {[%emt 0:2:2]} ({Predecessor:} 9. Nbd2 O-O 10. Qe1 Nb4 11. Rc1 c6 12. Kh1 d5 13. Bb3 dxe4 14. Nxe4 Nxd3 15. cxd3 Bxb3 {0-1 Sukandar,I (2354)-Koneru,H (2431) Wch Rapid (Women) 2024 (11)} )fxe6 {[%emt 0:0:2]} 10. a5 {[%emt 0:0:16]} O-O {[%emt 0:6:47]} 11. a6 {[%emt 0:8:45]} b5 {[%emt 0:1:18]} 12. Qe1 {[%emt 0:0:20]} Rb8 {[%emt 0:3:33]} 13. Qc3 {[%emt 0:12:56]} Rb6 {[%emt 0:0:7]} 14. b4 {[%emt 0:6:0]} ({White should try} 14. Qb3 $11 )Qe7 {[%emt 0:6:40]} 15. Nbd2 {[%emt 0:9:0]} d5 {[%emt 0:5:55]} 16. Rfb1 {[%emt 0:8:23]} Qd6 {[%emt 0:3:13]} 17. h3 {[%emt 0:12:5]} (17. Qc5 $15 )d4 $17 {[%emt 0:5:49]} 18. exd4 {[%emt 0:2:10]} Nxd4 {[%emt 0:8:51]} (18... exd4 $15 19. Qb2 e5 )19. Qc5 $11 {[%emt 0:8:43]} Nd7 {[%emt 0:5:27]} 20. Qxd6 {[%emt 0:0:30]} cxd6 {[%emt 0:0:53]} 21. c4 {[%emt 0:2:30]} Ne2+ {[%emt 0:8:0]} 22. Kh2 {[%emt 0:7:32]} Rc8 {[%emt 0:3:54]} 23. Ra5 {[%emt 0:3:18]} Nf4 {[%emt 0:6:7]} 24. Rb3 {[%emt 0:1:10]} ({Much weaker is} 24. cxb5 Nxd3 25. Rb3 Nf4 $17 )Ne2 {[%emt 0:4:17]} 25. Rb1 {[%emt 0:3:45]} Nf4 {[%emt 0:0:5]} 26. Rb3 {[%emt 0:0:3]} Ne2 {[%emt 0:0:3]} 27. Rb1 {[%emt 0:2:18]} Nf4 {[%emt 0:1:38] Weighted Error Value: White=0.13 (very precise) /Black=0.05 (flawless)   Mistake:       	White=2     	Black=1      Inaccurate:     	White=1     	Black=2      OK:         	White=5     	Black=11} 1/2-1/2

[Event "FIDE Women Candidates 2026"]
[White "Divya Deshmukh"]
[Black "Zhu,Jiner"]
[Site "Agios Georgios Pegeia"]
[Round "4.4"]
[Annotator "TA"]
[Result "0-1"]
[Date "2026.04.01"]
[WhiteElo "2497"]
[BlackElo "2578"]
[PlyCount "72"]
[TimeControl "60"]

{[%evp 9,71,19,18,17,18,16,8,9,16,2,4,-12,-2,4,4,-43,-45,-47,-19,-58,-48,-60,-63,-78,-71,-68,-72,-78,-106,-109,-43,-38,-42,-127,-25,-188,-187,-217,-217,-241,-201,-350,-362,-415,-399,-402,-413,-402,-404,-556,-556,-584,-583,-589,-586,-559,-563,-744,-729,-844,-633,-1603,-1548,-1648]} 1. c4 {[%emt 0:0:6]} e5 {[%emt 0:0:9]} 2. Nc3 {[%emt 0:0:10]} Bb4 {[%emt 0:0:39]} 3. Nd5 {[%emt 0:0:10]} a5 {[%emt 0:0:18]} 4. Nf3 {[%emt 0:0:29]} d6 {[%emt 0:0:41]} 5. a3 {[%emt 0:0:38]} Bc5 {[%emt 0:0:6]} 6. e3 {[%emt 0:0:12] A21: English Opening: 1...e5 2 Nc3.} Nf6 {[%emt 0:0:33]} 7. d4 {[%emt 0:4:20]} Nxd5 {[%emt 0:0:29]} 8. cxd5 {[%emt 0:0:35] The position is equal.} exd4 {[%emt 0:0:14]} 9. exd4 {[%emt 0:2:28]} Bb6 {[%emt 0:0:7]} 10. Bg5 {[%emt 0:0:3]} f6 {[%emt 0:0:6]} 11. Be3 {[%emt 0:0:2]} O-O {[%emt 0:0:28]} 12. h4 $146 {[%emt 0:0:3]} (12. Qc2 $11 )({Predecessor:} 12. Bd3 f5 13. Qc2 f4 14. Bxh7+ Kh8 15. Bd2 Qe7+ 16. Kf1 Bg4 17. Re1 Qf6 18. h4 {1-0 Shankland,S (2712)-Yoo,C (2563) USA-ch Saint Louis 2022 (9)} )f5 $15 {[%emt 0:4:53]} 13. g3 {[%emt 0:8:56]} Qe8 {[%emt 0:7:33]} 14. Bd3 {[%emt 0:12:51]} Nd7 {[%emt 0:4:52]} 15. O-O {[%emt 0:8:32]} h6 $1 {[%emt 0:3:26]} 16. Ne1 {[%emt 0:13:52]} Nf6 {[%emt 0:8:48]} 17. Ng2 {[%emt 0:1:1]} Nxd5 {[%emt 0:18:24]} 18. Bc4 {[%emt 0:11:24]} Be6 {[%emt 0:0:8]} 19. Re1 {[%emt 0:9:30] [#]} Qf7 {[%emt 0:3:20]} ({Black should try} 19... Qd7 $1 $17 20. Qb3 a4 )20. Bd2 {[%emt 0:5:33]} c6 {[%emt 0:0:29]} 21. Qb3 {[%emt 0:3:2]} ({Better is} 21. Rxe6 $1 $15 Qxe6 22. Nf4 )Kh7 {[%emt 0:5:31]} (21... Bxd4 $17 22. Rxe6 Qxe6 23. Qxb7 Rac8 )22. a4 {[%emt 0:13:26] This move loses the game for White.} ({But not} 22. Bxd5 $2 Bxd5 23. Qd3 (23. Qxb6 $2 {loses.} Ra6 $19 )Be4 $19 )(22. Rxe6 $11 {and White stays safe.} a4 (22... Qxe6 $2 23. Qxb6 Qe4 24. Bxd5 $18 )23. Rxh6+ gxh6 24. Qd3 )Bxd4 $19 {[%emt 0:2:3]} 23. Re2 {[%emt 0:0:57]} Be5 {[%emt 0:6:13][%cal Od5f4] ...Nf4! would now be deadly.} 24. Rae1 {[%emt 0:2:11]} Nf4 {[%emt 0:0:53]} 25. gxf4 {[%emt 0:1:17]} (25. Bxe6 $142 Nxe6 (25... Qxe6 $2 26. Re3 $19 )26. Qd3 )Bxc4 {[%emt 0:0:5]} 26. Qg3 {[%emt 0:1:8]} Bf6 {[%emt 0:3:53]} 27. Re3 {[%emt 0:0:1]} d5 {[%emt 0:0:31]} 28. Qh3 {[%emt 0:0:50]} d4 {[%emt 0:0:16]} 29. Rg3 {[%emt 0:0:12]} Qh5 {[%emt 0:0:21] Black is clearly winning.} 30. b4 {[%emt 0:0:59]} axb4 {[%emt 0:0:28]} 31. Bxb4 {[%emt 0:0:1]} Rfe8 {[%emt 0:0:8]} 32. Rc1 {[%emt 0:0:34]} Bd5 {[%emt 0:0:31]} 33. Ne1 {[%emt 0:0:3]} Rxa4 {[%emt 0:0:39]} 34. Bd6 {[%emt 0:0:3]} Kh8 {[%emt 0:1:42]} 35. Be5 {[%emt 0:1:10]} Bxe5 {[%emt 0:0:12]} 36. fxe5 {[%emt 0:0:1]} d3 {[%emt 0:0:33] Weighted Error Value: White=0.70/Black=0.16 (very precise)   Loses game:     	White=1     	---        Mistake:       	White=3     	Black=2      Inaccurate:     	White=3     	Black=1      OK:         	White=2     	Black=7      Strong:       	---       	Black=1} 0-1

[Event "FIDE Women Candidates 2026"]
[White "Lagno,Kateryna"]
[Black "Assaubayeva,Bibisara"]
[Site "Agios Georgios Pegeia"]
[Round "5.1"]
[Annotator "TA"]
[Result "1-0"]
[Date "2026.04.03"]
[WhiteElo "2508"]
[BlackElo "2516"]
[PlyCount "79"]
[TimeControl "60"]

{[%evp 16,78,22,14,43,61,70,81,58,61,60,0,61,67,141,159,164,152,168,162,196,162,255,239,239,226,237,97,98,124,130,131,333,355,343,353,395,338,349,337,362,364,364,377,375,370,363,358,436,439,447,412,395,415,459,460,431,418,660,660,799,633,595,551,674]} 1. e4 {[%emt 0:0:3]} c5 {[%emt 0:0:4]} 2. Nf3 {[%emt 0:0:11]} Nc6 {[%emt 0:0:8]} 3. Nc3 {[%emt 0:0:18]} g6 {[%emt 0:0:7]} 4. d4 {[%emt 0:0:25]} cxd4 {[%emt 0:0:6]} 5. Nxd4 {[%emt 0:0:4]} Bg7 {[%emt 0:0:23]} 6. Be3 {[%emt 0:0:21]} Nf6 {[%emt 0:0:20]} 7. Nb3 {[%emt 0:0:38]} O-O {[%emt 0:1:52]} 8. Qd2 {[%emt 0:0:51] is now debated instead of 8.Be2.} d6 {[%emt 0:11:46]} 9. f3 {[%emt 0:0:28]} a5 {[%emt 0:3:49] B76: Sicilian Dragon: Yugoslav Attack, 9 g4 and 9 0-0-0.} 10. a4 {[%emt 0:11:13]} Nb4 {[%emt 0:5:52]} 11. O-O-O {[%emt 0:1:31]} Bd7 {[%emt 0:2:56] White is better.} 12. Kb1 {[%emt 0:11:46]} Rc8 $146 {[%emt 0:3:16]} ({Predecessor:} 12... Qe8 13. Bb5 Rc8 14. Rc1 Bxb5 15. Nxb5 Nd7 16. Nxa5 Nc6 17. Nxc6 bxc6 18. Nc3 Ra8 {0-1 Sawlin,L (1520)-Grimm,C (1531) GER-chT U16 Uelzen 2007 (5.4)} )13. h4 {[%emt 0:24:33]} ({Better is} 13. Nd4 $14 )Nh5 {[%emt 0:11:50]} (13... Bxa4 $11 14. g4 (14. Nxa4 Rxc2 15. Qxc2 Nxc2 $15 )Qd7 )14. Bd4 $1 $14 {[%emt 0:1:45]} e5 {[%emt 0:12:18]} (14... Bxd4 $14 15. Nxd4 (15. Qxd4 Ng3 $14 )Ng3 )15. Bf2 $16 {[%emt 0:0:52]} d5 {[%emt 0:8:44]} 16. exd5 {[%emt 0:0:35]} (16. Nxd5 Bxa4 (16... Rxc2 17. Qe1 $16 )17. Nb6 Qxd2 18. Rxd2 Bxb3 19. cxb3 Rfd8 20. Rxd8+ Rxd8 $11 )Bf5 {[%emt 0:1:15] [#]} 17. Na1 {[%emt 0:7:23] Threatens to win with g4.} Nf6 {[%emt 0:5:35][%cal Bh5f6,Bf6d5,Bd5f4,Bf4e2][%mdl 32]} 18. g4 {[%emt 0:0:47]} Rxc3 {[%emt 0:12:6]} (18... Nfxd5 $142 19. Nxd5 (19. gxf5 Rxc3 20. fxg6 fxg6 $14 )Rxc2 20. Nxc2 Bxc2+ 21. Qxc2 Nxc2 )19. Qxc3 $18 {[%emt 0:5:16]} (19. bxc3 Nbxd5 20. Be2 (20. gxf5 $2 Nxc3+ 21. Qxc3 Qxd1+ 22. Ka2 Nd5 $19 )Bxg4 $16 )Nfxd5 {[%emt 0:2:54]} 20. Qd2 {[%emt 0:1:3]} (20. gxf5 $2 Nxc3+ 21. bxc3 Qxd1+ $19 )Be6 {[%emt 0:2:17]} 21. Nb3 {[%emt 0:7:57]} (21. c4 Qe8 22. cxd5 Bxd5 $16 )(21. Bc5 $18 {has better winning chances.} )Qf6 $16 {[%emt 0:2:57]} 22. Be2 {[%emt 0:7:40]} Rc8 {[%emt 0:1:3]} 23. c3 {[%emt 0:4:21]} (23. Nxa5 $2 {perishes.} Rxc2 (23... Nxc2 24. g5 $17 )24. Qe1 e4 $19 )Nc6 $2 {[%emt 0:3:52] [#] Loses the game.} (23... Nxc3+ $16 24. bxc3 Bxb3 25. cxb4 Bc2+ 26. Qxc2 Rxc2 27. Kxc2 e4 )24. Nc5 $18 {[%emt 0:0:32]} Nf4 {[%emt 0:1:22]} 25. Nxe6 {[%emt 0:0:25]} ({Don't do} 25. Nxb7 Bd5 $18 )Nxe2 {[%emt 0:4:17]} 26. Qxe2 {[%emt 0:2:10]} Qxe6 {[%emt 0:0:17]} 27. Qe4 {[%emt 0:0:26]} Qb3 {[%emt 0:1:29]} 28. Rd7 {[%emt 0:1:24]} b5 {[%emt 0:0:58]} 29. axb5 {[%emt 0:0:12]} Qxb5 {[%emt 0:0:27]} 30. Qd5 {[%emt 0:0:25]} Qxd5 {[%emt 0:0:30]} 31. Rxd5 {[%emt 0:0:2]} f5 {[%emt 0:0:38]} 32. gxf5 {[%emt 0:0:27]} Ne7 {[%emt 0:0:7]} 33. Rd7 {[%emt 0:1:20]} Nxf5 {[%emt 0:0:7]} 34. h5 {[%emt 0:0:18]} a4 {[%emt 0:0:25]} 35. hxg6 {[%emt 0:0:39]} hxg6 {[%emt 0:0:1]} 36. Rg1 {[%emt 0:2:35]} a3 {[%emt 0:1:26]} (36... Rc6 $142 37. Ra7 Re6 38. Rxa4 Kh7 )37. Rxg6 {[%emt 0:0:20] White is clearly winning.} axb2 {[%emt 0:0:1]} 38. Kxb2 {[%emt 0:2:43]} Kh7 {[%emt 0:0:6]} 39. Rf6 {[%emt 0:2:6]} Nh6 {[%emt 0:0:28]} 40. Be3 {[%emt 0:0:20] Weighted Error Value: White=0.23 (precise) /Black=0.47   Loses game:     	---       	Black=1      Missed win:     	White=1     	---        Mistake:       	White=2     	Black=4      OK:         	White=10    	Black=6      Best:        	---       	Black=1      Strong:       	White=1     	---} 1-0

[Event "FIDE Women Candidates 2026"]
[White "Goryachkina,Aleksandra"]
[Black "Muzychuk,Anna"]
[Site "Agios Georgios Pegeia"]
[Round "5.2"]
[Annotator "TA"]
[Result "1/2-1/2"]
[Date "2026.04.03"]
[WhiteElo "2534"]
[BlackElo "2522"]
[PlyCount "57"]
[TimeControl "60"]

{[%evp 22,57,43,27,41,-8,-8,-7,-5,-2,-2,-4,0,-14,-9,-8,-8,-30,0,0,0,0,0,0,0,0,0,0,0,0,0,0,0,0,0,0,0,-3]} 1. e4 {[%emt 0:0:9]} c5 {[%emt 0:0:7]} 2. Nf3 {[%emt 0:0:12]} Nc6 {[%emt 0:0:6]} 3. Bb5 {[%emt 0:0:19]} g6 {[%emt 0:0:7]} 4. Bxc6 {[%emt 0:0:38]} bxc6 {[%emt 0:0:8]} 5. O-O {[%emt 0:0:15]} Bg7 {[%emt 0:0:21]} 6. Re1 {[%emt 0:0:20]} e5 {[%emt 0:0:27]} 7. c3 {[%emt 0:3:50]} Ne7 {[%emt 0:0:9]} 8. d4 {[%emt 0:1:31]} cxd4 {[%emt 0:0:8]} 9. cxd4 {[%emt 0:0:5]} exd4 {[%emt 0:0:6]} 10. Nxd4 {[%emt 0:0:51]} O-O {[%emt 0:0:8]} 11. Nc3 {[%emt 0:1:32]} Rb8 {[%emt 0:0:12]} 12. Nb3 {[%emt 0:5:14]} d5 {[%emt 0:0:18] B31: Sicilian: 2...Nc6 3 Bb5 g6.} 13. exd5 {[%emt 0:10:21]} (13. Bg5 $14 d4 14. Ne2 )Nxd5 $11 {[%emt 0:2:16]} 14. Nxd5 {[%emt 0:3:35]} Qxd5 {[%emt 0:5:55]} 15. Qxd5 {[%emt 0:4:20]} cxd5 {[%emt 0:0:1]} 16. Bf4 {[%emt 0:1:10]} Rb6 {[%emt 0:5:22]} 17. Be5 {[%emt 0:10:31]} Be6 {[%emt 0:14:55]} 18. Bxg7 {[%emt 0:2:39]} Kxg7 {[%emt 0:0:1]} 19. Rad1 $146 {[%emt 0:6:50]} ({Predecessor:} 19. Rac1 d4 20. Nxd4 Bxa2 21. Rc7 a5 22. Ra7 Rxb2 23. Rxa5 Rd8 24. Nf3 Bd5 25. Ra3 Rc8 26. Rd3 Ba8 27. Rd2 Rxd2 {½-½ Drygalov,A (2481)-Zvjaginsev,V (2642) Wch Blitz St Petersburg 2018 (20)} )d4 {[%emt 0:2:20]} 20. Rxd4 {[%emt 0:0:56] The position is equal.} Bxb3 {[%emt 0:0:10]} 21. axb3 {[%emt 0:0:5]} Rxb3 {[%emt 0:0:6][%mdl 4096] Endgame KRR-KRR} 22. Ra4 {[%emt 0:0:31]} Rxb2 {[%emt 0:0:17]} 23. Rxa7 {[%emt 0:0:6]} Re8 {[%emt 0:0:57]} 24. Raa1 {[%emt 0:0:23]} Rd8 {[%emt 0:0:36]} 25. Rab1 {[%emt 0:0:20]} Ra2 {[%emt 0:0:7]} 26. Ra1 {[%emt 0:0:1]} Rb2 {[%emt 0:0:6]} 27. Rab1 {[%emt 0:0:4]} Ra2 {[%emt 0:0:6]} 28. Ra1 {[%emt 0:0:4]} Rb2 {[%emt 0:0:5]} 29. Rab1 {[%emt 0:0:5] A rather calm draw.   Weighted Error Value: White=0.07 (flawless) /Black=0.03 (flawless)   Mistake:       	White=1     	---        Inaccurate:     	---       	Black=1      OK:         	White=5     	---} 1/2-1/2

[Event "FIDE Women Candidates 2026"]
[White "Zhu,Jiner"]
[Black "Vaishali,Rameshbabu"]
[Site "Agios Georgios Pegeia"]
[Round "5.3"]
[Annotator "TA"]
[Result "1-0"]
[Date "2026.04.03"]
[WhiteElo "2578"]
[BlackElo "2470"]
[PlyCount "123"]
[TimeControl "60"]

{[%evp 10,122,38,29,45,37,44,29,43,27,27,27,32,23,59,7,8,3,60,21,32,0,63,27,92,91,89,67,76,82,75,74,69,62,89,89,96,102,117,54,31,38,72,34,41,43,114,114,114,114,120,147,147,137,162,110,158,158,156,156,156,156,156,156,156,156,201,201,201,155,233,208,233,233,233,233,413,431,425,377,751,660,795,670,648,624,698,645,645,645,627,346,330,543,334,577,539,612,584,584,623,411,812,660,3778,3678,2137,1994,29967,29968,1964,1240,29984,29985,29988]} 1. e4 {[%emt 0:0:4]} e5 {[%emt 0:0:21]} 2. Nf3 {[%emt 0:0:9]} Nc6 {[%emt 0:0:8]} 3. Bc4 {[%emt 0:0:8]} Nf6 {[%emt 0:0:12]} 4. d3 {[%emt 0:0:8]} h6 {[%emt 0:0:20]} 5. O-O {[%emt 0:6:0]} d6 {[%emt 0:0:32]} 6. a4 {[%emt 0:0:20][%cal Ba2a4,Ba4a5,Ba5a6][%mdl 32]} g6 {[%emt 0:0:36] C55: Two Knights: 4 d3, 4 d4 exd4 5 e5 and Max Lange Attack.} 7. a5 {[%emt 0:0:48]} Bg7 {[%emt 0:0:22]} 8. a6 {[%emt 0:6:8]} b6 {[%emt 0:3:57] White has an edge.} 9. Bb5 {[%emt 0:0:43]} Bd7 {[%emt 0:0:24]} 10. c4 {[%emt 0:0:24]} O-O {[%emt 0:1:56]} 11. Nc3 {[%emt 0:0:15][%cal Bb1c3,Bc3e2,Be2g3][%mdl 32]} Nd4 $146 {[%emt 0:25:22]} ({Predecessor:} 11... Nb4 12. Bxd7 Qxd7 13. d4 exd4 14. Nxd4 Ng4 15. Ra4 Ne5 16. Rxb4 c5 17. Ra4 cxd4 {1-0 Sethuraman,S (2594)-Durarbayli,V (2627) Chessable Masters Play In rapid 2024 (4)} )12. Nxd4 {[%emt 0:6:16]} (12. Bxd7 $14 Qxd7 13. b4 )exd4 $11 {[%emt 0:0:2]} 13. Bxd7 {[%emt 0:0:7]} Nxd7 {[%emt 0:0:7]} (13... Qxd7 $11 14. Ne2 c5 )14. Ne2 {[%emt 0:0:31]} c6 {[%emt 0:11:29]} 15. f4 {[%emt 0:19:50]} f5 {[%emt 0:0:48]} (15... Rb8 $11 )16. Ng3 {[%emt 0:0:40]} Nc5 {[%emt 0:3:4]} (16... fxe4 $11 17. Nxe4 d5 18. cxd5 cxd5 )17. b4 $16 {[%emt 0:1:18]} Ne6 {[%emt 0:0:20]} 18. Bd2 {[%emt 0:10:26]} Qd7 {[%emt 0:1:48]} 19. h4 {[%emt 0:2:17]} d5 {[%emt 0:11:38] [#]} 20. cxd5 {[%emt 0:2:32]} cxd5 {[%emt 0:0:5]} 21. e5 {[%emt 0:0:8][%csl Oe5] White has a king side majority. White has a strong passed pawn} h5 {[%emt 0:8:20]} 22. Ne2 {[%emt 0:4:32]} Qb5 {[%emt 0:1:58]} 23. Ra3 {[%emt 0:9:26]} Rfc8 {[%emt 0:9:27]} 24. Qa1 {[%emt 0:0:40]} (24. Qb1 $16 )Rc2 $14 {[%emt 0:0:36]} 25. Rd1 {[%emt 0:0:5]} Kf7 {[%emt 0:4:27]} 26. Nxd4 {[%emt 0:1:35]} Nxd4 {[%emt 0:0:2]} 27. Qxd4 {[%emt 0:0:6]} Ke6 {[%emt 0:0:26] Black is on the road to losing.} ({Black should play} 27... Rac8 $14 )28. Rc3 $16 {[%emt 0:9:58]} Rc8 {[%emt 0:0:18]} 29. Rxc8 {[%emt 0:0:29]} Rxc8 {[%emt 0:0:3]} 30. Qe3 {[%emt 0:0:6]} Bf8 {[%emt 0:0:58][%cal Of8e7]} 31. Qg3 {[%emt 0:1:14]} Qe8 {[%emt 0:2:33] [#]} 32. b5 {[%emt 0:1:40]} ({Better is} 32. Rb1 $1 $18 )Be7 {[%emt 0:1:51]} (32... Kf7 $142 )33. Rb1 {[%emt 0:5:17]} Rc2 {[%emt 0:1:57]} 34. Be3 {[%emt 0:0:54]} Rc3 {[%emt 0:1:35]} 35. Bd4 {[%emt 0:0:28]} Rc2 {[%emt 0:0:49]} 36. Kh2 {[%emt 0:1:1]} Bd8 {[%emt 0:1:42]} 37. Ra1 {[%emt 0:5:9]} Qf7 {[%emt 0:2:7]} 38. Be3 {[%emt 0:4:0]} Qe8 {[%emt 0:1:42]} 39. Kh3 {[%emt 0:1:2]} Qf7 {[%emt 0:2:11]} (39... Rc3 $16 {was necessary.} )40. Bc1 {[%emt 0:0:52]} Be7 {[%emt 0:2:58]} 41. Ba3 {[%emt 0:8:21]} Bxa3 {[%emt 0:25:26]} 42. Rxa3 $18 {[%emt 0:0:5][%mdl 4096] Endgame KQR-KQR. White is a pawn up.} Rc8 $2 {[%emt 0:0:16]} (42... Rc1 43. Kh2 Kd7 )43. Qg5 {[%emt 0:3:33]} Kd7 {[%emt 0:0:25]} 44. d4 {[%emt 0:7:14]} Rg8 $2 {[%emt 0:1:20]} (44... Qe7 45. Rg3 Qxg5 46. Rxg5 Rg8 )45. Rc3 {[%emt 0:0:48]} Re8 {[%emt 0:1:46]} 46. Kh2 {[%emt 0:2:49]} Re6 {[%emt 0:2:33]} 47. Qg3 {[%emt 0:0:6]} Kd8 {[%emt 0:1:27]} 48. Qe1 {[%emt 0:0:56]} Qe7 {[%emt 0:0:45]} 49. Kh3 {[%emt 0:0:33]} Qe8 {[%emt 0:0:47]} 50. Qc1 {[%emt 0:0:21]} Qd7 {[%emt 0:0:3] Inhibits Rc8+.} 51. Qc2 $2 {[%emt 0:1:45]} (51. Kg3 )Re7 {[%emt 0:0:29]} 52. Qb3 $2 {[%emt 0:0:20]} (52. Kh2 )Re6 {[%emt 0:0:21]} 53. Qb4 {[%emt 0:0:27]} Ke8 {[%emt 0:0:25] Dodges Qf8+} 54. Rc2 {[%emt 0:1:41]} Qd8 {[%emt 0:1:16]} 55. Qc3 {[%emt 0:0:14]} Kd7 {[%emt 0:0:21]} (55... Kf7 $142 56. Qc7+ Qxc7 57. Rxc7+ Re7 )56. Rc1 {[%emt 0:0:25]} Qb8 {[%emt 0:0:34]} 57. Qb3 {[%emt 0:0:5]} Qa8 {[%emt 0:0:14]} 58. Kg3 {[%emt 0:0:52]} Ke8 {[%emt 0:0:59]} 59. Rc7 {[%emt 0:0:20]} Re7 {[%emt 0:0:30]} 60. Rc6 {[%emt 0:0:10]} Rd7 {[%emt 0:0:22]} 61. Qc2 {[%emt 0:0:25]} Rd8 {[%emt 0:0:30]} 62. Rxg6 {[%emt 0:0:17] Weighted Error Value: White=0.26 (precise) /Black=0.63   Mistake:       	White=4     	Black=9      Inaccurate:     	White=5     	Black=4      OK:         	White=11    	Black=6} 1-0